bitfinex/quotes_SOLUSD_20250815
["timestamp","ask_amount","ask_price","bid_price","bid_amount"]
[1755236826163,13.99862213,195.87,195.86,0.03]
[1755236826326,8.89319507,195.87,195.86,0.03]
[1755236829034,13.99862213,195.87,195.86,0.03]
[1755236830136,5.77542706,195.87,195.86,0.03]
[1755236830351,13.99862213,195.87,195.86,0.03]
[1755236830943,131.9,195.88,195.86,0.69]
[1755236831554,131.9,195.88,195.86,0.03]
[1755236831555,132.57,195.88,195.86,0.03]
[1755236831733,140.79319507,195.88,195.86,0.03]
[1755236831935,131.9,195.88,195.86,0.03]
[1755236832231,131.9,195.88,195.86,0.69]
[1755236833032,131.9,195.88,195.86,0.03]
[1755236835364,131.9,195.88,195.87,0.66]
[1755236836858,131.9,195.88,195.86,0.03]
[1755236836859,131.9,195.88,195.86,5.13568624]
[1755236837156,131.9,195.88,195.86,0.03]
[1755236838453,132.57,195.88,195.86,0.03]
[1755236838966,52.99639014,195.87,195.82,0.03]
[1755236839149,8.22319507,195.83,195.82,0.03]
[1755236839348,44.22319507,195.83,195.82,0.03]
[1755236839548,44.89319507,195.83,195.82,0.03]
[1755236839749,22.25253507,195.83,195.82,0.03]
[1755236839961,61.77621255,195.83,195.82,0.03]
[1755236840766,66.88268244,195.83,195.82,0.03]
[1755236842359,96.88268244,195.83,195.82,0.03]
[1755236844842,60.78268244,195.83,195.82,0.03]
[1755236845047,56.68900496,195.83,195.82,0.03]
[1755236845367,93.45900496,195.83,195.82,0.03]
[1755236845870,96.87570523,195.83,195.82,0.03]
[1755236846771,66.87570523,195.83,195.82,0.03]
[1755236847662,36.1,195.83,195.82,0.69]
[1755236850358,66.1,195.83,195.82,0.69]
[1755236851096,30.0,195.83,195.82,0.69]
[1755236851281,30.0,195.83,195.82,14.01992574]
[1755236851860,36.08,195.84,195.82,14.01992574]
[1755236852074,36.08,195.84,195.83,0.72]
[1755236852889,131.9,195.85,195.83,0.72]
[1755236853083,36.08,195.84,195.82,13.35992574]
[1755236853587,36.08,195.84,195.82,0.03]
[1755236853990,36.08,195.84,195.83,0.72]
[1755236855193,131.9,195.85,195.83,0.72]
[1755236855396,36.06,195.84,195.83,0.72]
[1755236856381,44.95319507,195.84,195.82,0.03]
[1755236856763,8.89319507,195.83,195.82,0.03]
[1755236856958,12.31715078,195.83,195.82,0.03]
[1755236857172,17.42362067,195.83,195.82,0.03]
[1755236858273,47.42362067,195.83,195.82,0.03]
[1755236858891,55.4780972,195.83,195.8,0.03]
[1755236859077,8.22319507,195.81,195.8,0.03]
[1755236859278,5.10725229,195.8,195.78,0.03]
[1755236859489,179.62715078,195.79,195.78,0.03]
[1755236859787,180.29715078,195.79,195.78,0.03]
[1755236860286,185.40466393,195.79,195.78,0.03]
[1755236860493,215.40466393,195.79,195.78,0.03]
[1755236862587,83.50466393,195.79,195.78,1e-08]
[1755236862797,83.50466393,195.79,195.74,0.03]
[1755236862969,8.22319507,195.77,195.74,0.03]
[1755236863168,77.72715078,195.77,195.74,0.03]
[1755236863388,78.39715078,195.77,195.74,0.03]
[1755236864075,8.22319507,195.75,195.74,0.03]
[1755236864274,47.72715078,195.75,195.74,0.03]
[1755236864472,74.30319507,195.75,195.74,0.03]
[1755236864795,79.4117519,195.75,195.74,0.03]
[1755236864967,82.83376611,195.75,195.74,0.03]
[1755236865172,79.4117519,195.75,195.74,0.03]
[1755236865579,49.4117519,195.75,195.74,0.03]
[1755236865789,52.83305427,195.75,195.74,0.03]
[1755236865993,53.50305427,195.75,195.74,0.03]
[1755236866597,83.50305427,195.75,195.74,0.03]
[1755236869278,83.50305427,195.75,195.74,1e-08]
[1755236874297,85.55071327,195.75,195.74,1e-08]
[1755236875001,83.50305427,195.75,195.74,1e-08]
[1755236875207,46.75305427,195.75,195.74,1e-08]
[1755236875412,82.79305427,195.75,195.74,1e-08]
[1755236876199,83.46305427,195.75,195.74,1e-08]
[1755236876408,47.42305427,195.75,195.74,1e-08]
[1755236876609,83.46305427,195.75,195.74,1e-08]
[1755236879996,131.89999999,195.73,195.71,0.03]
[1755236880188,209.56449743,195.72,195.71,0.03]
[1755236880383,214.6738373,195.72,195.71,0.03]
[1755236882490,218.80958574,195.72,195.71,0.03]
[1755236882697,219.47958574,195.72,195.71,0.03]
[1755236883008,87.57958575,195.72,195.71,1e-08]
[1755236883198,95.80278082,195.72,195.71,1e-08]
[1755236883503,97.85075482,195.72,195.71,1e-08]
[1755236884806,89.62755975,195.72,195.71,1e-08]
[1755236885117,87.57958575,195.72,195.71,1e-08]
[1755236885417,89.62755875,195.72,195.71,1e-08]
[1755236885636,87.57958575,195.72,195.71,1e-08]
[1755236885788,89.62755975,195.72,195.71,1e-08]
[1755236885983,97.85075482,195.72,195.71,1e-08]
[1755236887292,89.62755975,195.72,195.71,1e-08]
[1755236887497,50.88958575,195.72,195.71,1e-08]
[1755236887699,33.42130237,195.72,195.71,0.68000001]
[1755236887906,30.0,195.72,195.71,0.68000001]
[1755236888219,66.02,195.72,195.71,0.68000001]
[1755236888390,36.02,195.72,195.71,0.68000001]
[1755236888592,41.12933987,195.72,195.71,0.68000001]
[1755236888791,49.35253494,195.72,195.71,0.68000001]
[1755236890003,36.02,195.72,195.71,0.68000001]
[1755236890403,13.33205462,195.74,195.71,0.68000001]
[1755236890590,36.0,195.73,195.71,0.68000001]
[1755236890791,36.0,195.72,195.71,0.68000001]
[1755236891119,13.33205462,195.74,195.71,0.68000001]
[1755236891316,38.22319507,195.72,195.71,1e-08]
[1755236891491,49.86386083,195.72,195.71,1e-08]
[1755236891905,52.22573001,195.72,195.71,1e-08]
[1755236892105,55.64362759,195.72,195.71,1e-08]
[1755236893116,47.42043252,195.72,195.71,1e-08]
[1755236893420,55.64362759,195.72,195.71,1e-08]
[1755236896532,30.0,195.72,195.71,0.68000001]
[1755236896703,66.06,195.72,195.71,0.68000001]
[1755236898135,30.0,195.72,195.71,14.01279602]
[1755236898434,24.755425,195.72,195.71,14.01279602]
[1755236898629,36.06,195.73,195.71,14.01279602]
[1755236898802,36.06,195.73,195.72,8.90319507]
[1755236899003,36.08,195.74,195.72,8.90319507]
[1755236899201,36.08,195.74,195.73,0.68]
[1755236899433,66.08,195.74,195.73,0.68]
[1755236899717,69.50711304,195.74,195.73,0.68]
[1755236899903,66.08,195.74,195.73,0.68]
[1755236900101,36.08,195.74,195.73,0.68]
[1755236901609,66.08,195.74,195.73,0.68]
[1755236902305,30.0,195.74,195.73,14.0122739]
[1755236902818,36.14,195.76,195.73,14.0122739]
[1755236903035,0.06,195.76,195.75,8.22319507]
[1755236903231,0.06,195.76,195.75,0.68]
[1755236906623,36.12,195.76,195.75,0.68]
[1755236907608,44.66139904,195.76,195.72,8.22319507]
[1755236907820,3.43324155,195.75,195.73,0.68]
[1755236908008,36.06,195.74,195.71,1e-08]
[1755236908334,44.28319507,195.74,195.71,0.68000001]
[1755236908659,8.22319507,195.73,195.71,0.68000001]
[1755236908848,176.18319507,195.72,195.71,1e-08]
[1755236909011,179.61700646,195.72,195.71,1e-08]
[1755236909212,180.28700646,195.72,195.71,1e-08]
[1755236909828,185.39634633,195.72,195.71,1e-08]
[1755236911627,184.72634633,195.72,195.71,1e-08]
[1755236911935,185.40634633,195.72,195.71,1e-08]
[1755236912242,53.50634633,195.72,195.71,1e-08]
[1755236912648,83.50634633,195.72,195.71,1e-08]
[1755236913141,33.43381139,195.72,195.71,0.66000001]
[1755236913545,69.49381139,195.72,195.71,0.66000001]
[1755236913746,36.06,195.72,195.71,0.66000001]
[1755236915049,36.12,195.72,195.71,0.66000001]
[1755236920847,0.06,195.72,195.71,0.66000001]
[1755236921155,0.06,195.72,195.71,13.99279602]
[1755236923467,0.06,195.72,195.71,8.88319508]
[1755236924241,36.1,195.72,195.71,1e-08]
[1755236924438,44.32319507,195.72,195.71,1e-08]
[1755236924754,0.06,195.72,195.71,8.88319508]
[1755236925829,0.06,195.72,195.71,0.66000001]
[1755236926052,0.06,195.72,195.71,8.88319508]
[1755236926454,0.06,195.72,195.71,13.99279602]
[1755236927845,0.06,195.72,195.71,0.66000001]
[1755236928039,0.06,195.72,195.71,1e-08]
[1755236929738,140.18319507,195.72,195.71,1e-08]
[1755236932640,145.97253494,195.72,195.71,1e-08]
[1755236933456,179.40826338,195.72,195.71,1e-08]
[1755236934867,47.50826338,195.72,195.71,1e-08]
[1755236937450,46.82826338,195.72,195.71,1e-08]
[1755236937847,33.49572844,195.72,195.71,1e-08]
[1755236938049,41.71892351,195.72,195.71,1e-08]
[1755236938680,77.75892351,195.72,195.71,1e-08]
[1755236938963,41.71892351,195.72,195.71,1e-08]
[1755236939265,77.75892351,195.72,195.71,1e-08]
[1755236939863,41.71892351,195.72,195.71,1e-08]
[1755236940044,77.75892351,195.72,195.71,1e-08]
[1755236940452,33.49572844,195.72,195.71,1e-08]
[1755236940658,66.1,195.72,195.71,0.66000001]
[1755236940856,36.1,195.72,195.71,0.66000001]
[1755236941039,36.1,195.72,195.71,8.88319508]
[1755236941440,0.06,195.72,195.71,8.88319508]
[1755236941640,36.1,195.72,195.71,8.88319508]
[1755236942569,0.06,195.72,195.71,8.88319508]
[1755236942868,36.1,195.72,195.71,8.88319508]
[1755236944863,36.1,195.72,195.71,1e-08]
[1755236945054,36.1,195.72,195.71,0.70000001]
[1755236946466,36.1,195.72,195.71,1e-08]
[1755236948169,39.53977099,195.72,195.71,1e-08]
[1755236949469,36.1,195.72,195.71,1e-08]
[1755236949677,168.0,195.72,195.71,1e-08]
[1755236950563,168.0,195.72,195.71,0.70000001]
[1755236950958,168.0,195.72,195.71,8.92319508]
[1755236952680,168.0,195.72,195.71,0.70000001]
[1755236953058,171.44158797,195.72,195.71,1e-08]
[1755236954447,201.44158797,195.72,195.71,1e-08]
[1755236956066,171.44158797,195.72,195.71,1e-08]
[1755236965200,201.44158797,195.72,195.71,1e-08]
[1755236966980,202.14158797,195.72,195.71,1e-08]
[1755236967286,166.10158797,195.72,195.71,1e-08]
[1755236967476,75.27092784,195.72,195.71,1e-08]
[1755236968581,69.46158797,195.72,195.71,1e-08]
[1755236969667,39.46158797,195.72,195.71,1e-08]
[1755236972689,33.50158797,195.72,195.71,8.93319508]
[1755236972871,39.46158797,195.72,195.71,0.71000001]
[1755236976097,39.44158797,195.72,195.71,0.71000001]
[1755236976297,36.0,195.72,195.71,0.71000001]
[1755236976598,0.06,195.72,195.71,0.71000001]
[1755236977082,36.0,195.72,195.71,0.71000001]
[1755236977467,39.44406507,195.72,195.71,0.71000001]
[1755236977678,39.44406507,195.72,195.71,1e-08]
[1755236981098,39.44406507,195.72,195.71,0.71000001]
[1755236981285,36.0,195.72,195.71,0.71000001]
[1755236982997,0.06,195.72,195.71,0.71000001]
[1755236983297,36.0,195.72,195.71,0.71000001]
[1755236984000,39.44453188,195.72,195.71,1e-08]
[1755236986901,39.44453188,195.72,195.71,0.71000001]
[1755236987408,39.44453188,195.72,195.71,1e-08]
[1755236989506,39.44453188,195.72,195.71,0.71000001]
[1755236990815,36.0,195.72,195.71,8.93319508]
[1755236991301,0.06,195.74,195.71,40.04279602]
[1755236991509,0.06,195.74,195.73,8.22319507]
[1755236991686,0.06,195.74,195.73,34.22319507]
[1755236991887,0.06,195.74,195.73,34.93319507]
[1755236992293,0.06,195.74,195.73,8.93319507]
[1755236993926,0.06,195.74,195.73,14.0422739]
[1755237005414,0.06,195.74,195.73,13.3322739]
[1755237007033,0.76,195.74,195.71,5.10952272]
[1755237007319,0.76,195.74,195.71,13.33271779]
[1755237007497,0.76,195.74,195.71,5.10952272]
[1755237007698,0.06,195.74,195.73,8.22319507]
[1755237008293,0.76,195.74,195.71,8.22319508]
[1755237008899,0.76,195.74,195.71,1e-08]
[1755237010101,0.7,195.73,195.71,1e-08]
[1755237011913,0.76,195.74,195.71,1e-08]
[1755237013225,0.06,195.74,195.73,8.22319507]
[1755237014294,0.06,195.74,195.73,13.3322739]
[1755237014518,0.06,195.74,195.73,14.0022739]
[1755237022523,0.06,195.74,195.73,49.9222739]
[1755237022722,0.06,195.76,195.75,26.0]
[1755237022902,0.06,195.76,195.75,34.22319507]
[1755237023099,0.06,195.76,195.75,40.0017519]
[1755237023908,0.06,195.78,195.77,8.22319507]
[1755237024410,0.06,195.78,195.77,8.89319507]
[1755237025354,0.06,195.8,195.78,5.10777403]
[1755237025518,0.06,195.8,195.79,70.14319507]
[1755237025837,0.06,195.8,195.79,70.81319507]
[1755237026026,0.06,195.82,195.81,26.0]
[1755237026225,0.06,195.82,195.81,34.22319507]
[1755237026542,0.06,195.82,195.81,34.89319507]
[1755237027230,0.06,195.82,195.81,39.33018654]
[1755237028036,0.06,195.82,195.81,75.23018654]
[1755237028230,0.06,195.82,195.81,75.90018654]
[1755237032644,0.06,195.88,195.81,88.66766521]
[1755237032943,0.06,195.88,195.87,8.22319507]
[1755237033333,0.06,195.88,195.87,13.32862213]
[1755237033727,0.06,195.88,195.87,13.98862213]
[1755237034726,0.06,195.88,195.87,5.76542706]
[1755237034944,0.06,195.88,195.87,13.32862213]
[1755237035147,0.06,195.88,195.87,31.10542706]
[1755237035450,0.06,195.88,195.85,0.66]
[1755237035451,0.52,195.88,195.85,8.22319507]
[1755237036045,0.52,195.88,195.84,8.22319507]
[1755237036537,0.46,195.87,195.84,8.22319507]
[1755237037148,0.06,195.88,195.85,36.56]
[1755237037356,0.06,195.88,195.87,13.32862213]
[1755237038625,0.06,195.88,195.87,49.88862213]
[1755237042953,0.06,195.88,195.85,5.10572291]
[1755237042954,0.78,195.88,195.85,5.10572291]
[1755237043153,0.78,195.88,195.86,8.22319507]
[1755237043333,0.78,195.88,195.84,35.88]
[1755237043532,0.78,195.88,195.84,44.10319507]
[1755237044249,9.00319507,195.88,195.84,35.88]
[1755237044455,9.00319507,195.88,195.82,13.3298773]
[1755237044456,0.72,195.87,195.82,35.88]
[1755237044630,0.72,195.87,195.82,44.10319507]
[1755237045258,0.72,195.87,195.83,8.22319507]
[1755237045640,0.72,195.86,195.83,8.22319507]
[1755237045836,0.72,195.85,195.83,8.22319507]
[1755237046452,0.72,195.85,195.82,40.98667646]
[1755237046761,0.06,195.88,195.84,8.22319507]
[1755237046957,0.06,195.88,195.86,8.22319507]
[1755237048436,0.72,195.87,195.85,8.22319507]
[1755237048652,0.78,195.88,195.84,44.10319507]
[1755237048837,0.78,195.88,195.85,8.22319507]
[1755237050238,0.72,195.87,195.85,8.22319507]
[1755237050861,0.06,195.88,195.85,8.22319507]
[1755237051231,0.78,195.88,195.85,8.22319507]
[1755237051437,0.78,195.88,195.83,0.66]
[1755237051638,0.78,195.88,195.84,8.22319507]
[1755237051837,0.78,195.88,195.84,8.88319507]
[1755237052356,0.06,195.88,195.84,8.88319507]
[1755237052734,0.78,195.88,195.84,8.88319507]
[1755237052934,0.78,195.88,195.84,8.22319507]
[1755237053135,0.06,195.88,195.84,8.22319507]
[1755237053354,0.72,195.87,195.82,49.20991976]
[1755237053551,0.72,195.86,195.82,49.20991976]
[1755237053964,0.72,195.86,195.82,49.86991976]
[1755237054456,8.28319507,195.88,195.82,49.20991976]
[1755237054667,0.78,195.88,195.83,8.22319507]
[1755237055166,0.78,195.88,195.84,8.88319507]
[1755237055751,0.06,195.88,195.84,8.88319507]
[1755237056646,0.78,195.88,195.84,13.32937726]
[1755237056846,0.72,195.87,195.83,13.32961543]
[1755237057066,0.72,195.86,195.83,13.32961543]
[1755237057370,0.78,195.88,195.83,13.32961543]
[1755237057562,0.06,195.88,195.83,13.32961543]
[1755237057754,0.72,195.87,195.83,13.32961543]
[1755237058073,0.72,195.87,195.79,12.79813549]
[1755237058074,8.22319507,195.85,195.8,8.22319507]
[1755237058443,0.72,195.84,195.8,8.22319507]
[1755237058842,0.72,195.84,195.79,44.79319507]
[1755237059074,0.72,195.83,195.79,35.91]
[1755237059367,8.22319507,195.83,195.79,35.91]
[1755237059664,8.94319507,195.82,195.79,0.03]
[1755237059864,8.22319507,195.83,195.79,0.03]
[1755237060169,8.22319507,195.84,195.79,0.03]
[1755237060465,8.94319507,195.84,195.79,0.69]
[1755237061166,8.22319507,195.84,195.79,0.69]
[1755237061371,0.7,195.83,195.79,0.69]
[1755237063077,0.7,195.83,195.79,5.79737855]
[1755237065480,0.7,195.83,195.79,0.69]
[1755237068168,8.92319507,195.83,195.79,0.69]
[1755237068364,13.32973827,195.83,195.79,0.03]
[1755237068679,8.22319507,195.81,195.79,0.03]
[1755237068883,44.80319507,195.82,195.79,0.03]
[1755237069756,44.10319507,195.82,195.79,0.03]
[1755237069959,8.92319507,195.81,195.79,0.03]
[1755237070358,8.22319507,195.81,195.79,0.03]
[1755237070671,0.7,195.8,195.79,0.03]
[1755237071969,8.22319507,195.81,195.79,0.03]
[1755237072375,8.92319507,195.81,195.79,0.03]
[1755237072675,30.0,195.8,195.79,0.73]
[1755237073592,30.0,195.8,195.79,0.03]
[1755237073820,35.88,195.82,195.79,0.03]
[1755237074292,36.58,195.82,195.79,0.03]
[1755237074483,44.80319507,195.82,195.79,0.03]
[1755237075768,14.02995954,195.82,195.79,0.03]
[1755237076185,35.88,195.82,195.79,0.73]
[1755237080011,36.58,195.82,195.79,0.03]
[1755237084607,35.88,195.82,195.79,0.03]
[1755237084812,131.96,195.85,195.81,8.22319507]
[1755237085010,35.88,195.84,195.82,8.92319507]
[1755237085517,35.88,195.84,195.82,8.22319507]
[1755237085698,35.88,195.84,195.81,8.22319507]
[1755237086007,35.88,195.84,195.81,8.92319507]
[1755237086211,35.88,195.84,195.82,0.7]
[1755237086509,131.96,195.85,195.82,0.7]
[1755237086510,0.06,195.85,195.83,8.92319507]
[1755237086693,0.06,195.85,195.84,8.22319507]
[1755237086894,0.7,195.84,195.81,8.22319507]
[1755237087099,0.7,195.84,195.79,8.25319507]
[1755237087404,0.7,195.84,195.79,0.03]
[1755237087405,44.10319507,195.83,195.79,0.03]
[1755237087610,8.92319507,195.82,195.79,0.03]
[1755237087793,0.7,195.82,195.79,0.03]
[1755237088188,0.7,195.81,195.79,0.03]
[1755237088391,35.88,195.8,195.79,0.03]
[1755237088707,44.10319507,195.8,195.79,0.03]
[1755237089019,47.53472108,195.8,195.78,0.03]
[1755237089317,11.65472108,195.79,195.78,0.03]
[1755237089506,12.35472108,195.79,195.78,0.03]
[1755237089703,42.35472108,195.79,195.78,0.03]
[1755237090407,51.27446297,195.79,195.78,0.03]
[1755237091214,47.46223423,195.79,195.78,0.03]
[1755237097526,47.46223423,195.79,195.77,0.03]
[1755237097707,48.25472108,195.78,195.77,0.03]
[1755237098027,78.25472108,195.78,195.77,0.03]
[1755237099830,83.36249511,195.78,195.77,0.03]
[1755237102027,83.36249511,195.78,195.77,1e-08]
[1755237105418,136.97829586,195.76,195.75,0.03]
[1755237105742,82.64301695,195.76,195.75,0.03]
[1755237107337,41.65472108,195.76,195.75,0.69]
[1755237107525,65.9,195.76,195.75,0.69]
[1755237108041,65.9,195.76,195.75,8.91319507]
[1755237108334,71.00829587,195.76,195.75,0.69]
[1755237108713,79.23149094,195.76,195.75,0.69]
[1755237109927,79.23149094,195.76,195.75,0.03]
[1755237111022,82.65822195,195.76,195.75,0.03]
[1755237111233,83.37822195,195.76,195.75,0.03]
[1755237112442,82.65822195,195.76,195.75,0.03]
[1755237113340,83.37822195,195.76,195.75,0.03]
[1755237117952,8.22319507,195.75,195.71,1e-08]
[1755237118244,8.22319507,195.72,195.71,1e-08]
[1755237118435,44.10319507,195.72,195.71,1e-08]
[1755237118636,48.24992608,195.72,195.71,1e-08]
[1755237119020,47.52992608,195.72,195.71,1e-08]
[1755237119230,77.52992608,195.72,195.71,1e-08]
[1755237119431,82.63926595,195.72,195.71,1e-08]
[1755237121820,74.41607088,195.72,195.71,1e-08]
[1755237122040,82.65926595,195.72,195.71,0.69000001]
[1755237123627,82.65926595,195.72,195.71,1e-08]
[1755237124357,83.30926595,195.72,195.71,1e-08]
[1755237128155,87.11486814,195.72,195.71,1e-08]
[1755237128363,83.30926595,195.72,195.71,1e-08]
[1755237131040,87.11589598,195.72,195.71,1e-08]
[1755237131240,91.44826796,195.72,195.71,1e-08]
[1755237131534,87.17589598,195.72,195.71,1e-08]
[1755237131742,87.1774445,195.72,195.71,1e-08]
[1755237132356,91.44981648,195.72,195.71,1e-08]
[1755237133463,87.1774445,195.72,195.69,0.03]
[1755237133758,49.74619568,195.71,195.69,0.03]
[1755237134256,54.85579662,195.71,195.69,0.03]
[1755237136455,50.56907489,195.71,195.69,0.03]
[1755237137659,50.56778376,195.71,195.69,0.03]
[1755237138975,55.50587481,195.71,195.69,0.03]
[1755237139254,52.00818282,195.7,195.67,1e-08]
[1755237139435,8.22319507,195.68,195.67,1e-08]
[1755237139634,51.35818282,195.68,195.67,1e-08]
[1755237140233,47.54992608,195.68,195.67,1e-08]
[1755237140435,77.54992608,195.68,195.67,1e-08]
[1755237141245,83.31031038,195.68,195.67,1e-08]
[1755237142060,83.31031038,195.68,195.66,0.1]
[1755237142061,87.11580309,195.68,195.66,1e-08]
[1755237142241,46.10541879,195.67,195.66,1e-08]
[1755237142561,42.29992608,195.67,195.66,1e-08]
[1755237142754,41.64992608,195.67,195.66,1e-08]
[1755237143066,173.54992608,195.67,195.66,1e-08]
[1755237143265,179.31057155,195.67,195.66,1e-08]
[1755237145466,178.66057155,195.67,195.66,1e-08]
[1755237146044,179.31057155,195.67,195.66,1e-08]
[1755237147155,179.31057155,195.67,195.63,0.72]
[1755237147156,131.9,195.66,195.63,0.03]
[1755237147353,38.22319507,195.64,195.63,0.03]
[1755237147553,41.64992608,195.64,195.63,0.03]
[1755237148268,33.42673101,195.64,195.63,0.72]
[1755237148462,74.12319507,195.64,195.63,0.72]
[1755237149057,79.23462422,195.64,195.63,0.72]
[1755237151260,65.9,195.64,195.63,0.72]
[1755237151563,65.9,195.64,195.63,8.94319507]
[1755237151764,30.0,195.64,195.63,14.0548855]
[1755237152374,30.0,195.64,195.63,5.83169043]
[1755237152561,0.06,195.71,195.63,14.0548855]
[1755237152873,35.9,195.7,195.69,8.22319507]
[1755237153071,52.65459718,195.7,195.69,0.69]
[1755237153262,82.65459718,195.7,195.69,0.69]
[1755237154776,74.43140211,195.7,195.69,0.69]
[1755237157080,33.42154008,195.7,195.69,8.91319507]
[1755237157390,30.0,195.7,195.69,14.02331822]
[1755237157674,30.0,195.7,195.69,8.91319507]
[1755237158780,30.0,195.7,195.69,0.69]
[1755237159286,38.53700774,195.7,195.69,0.69]
[1755237159789,8.53700774,195.7,195.69,0.69]
[1755237160875,38.53700774,195.7,195.69,0.69]
[1755237161395,38.53700774,195.7,195.65,8.22319507]
[1755237161550,176.33738734,195.69,195.63,0.03]
[1755237161754,11.65034078,195.68,195.66,0.69]
[1755237161983,172.91024163,195.69,195.64,0.69]
[1755237161984,47.55192443,195.67,195.64,0.69]
[1755237162154,35.9,195.66,195.63,0.03]
[1755237162354,35.9,195.66,195.65,0.69]
[1755237162766,47.55249596,195.66,195.63,0.72]
[1755237162954,8.22319507,195.64,195.63,0.03]
[1755237163154,35.88,195.64,195.63,0.72]
[1755237164075,65.88,195.64,195.63,0.72]
[1755237164459,35.88,195.64,195.63,14.0548855]
[1755237164775,35.88,195.65,195.63,14.0548855]
[1755237164983,35.88,195.66,195.64,8.91319507]
[1755237165167,35.88,195.66,195.64,8.22319507]
[1755237165369,35.88,195.66,195.65,0.69]
[1755237166578,47.53246961,195.66,195.63,0.03]
[1755237166879,30.0,195.65,195.63,0.72]
[1755237167084,35.88,195.64,195.63,0.72]
[1755237168288,65.88,195.64,195.63,0.72]
[1755237168588,30.0,195.64,195.63,0.72]
[1755237168775,30.0,195.64,195.63,8.94319507]
[1755237168974,30.0,195.64,195.63,14.0548855]
[1755237169772,35.88,195.67,195.63,14.0548855]
[1755237169975,35.88,195.67,195.65,8.22319507]
[1755237170173,30.0,195.66,195.65,8.22319507]
[1755237170988,30.0,195.66,195.65,8.91319507]
[1755237171178,35.88,195.67,195.65,14.02428222]
[1755237171376,35.88,195.68,195.66,8.91319507]
[1755237171582,167.78,195.69,195.67,8.91319507]
[1755237171783,167.78,195.69,195.68,8.91319507]
[1755237171970,197.78,195.69,195.68,8.91319507]
[1755237172771,167.78,195.69,195.68,8.91319507]
[1755237173166,45.13982467,195.69,195.63,0.03]
[1755237173375,8.22319507,195.66,195.63,0.03]
[1755237173587,35.9,195.65,195.63,0.03]
[1755237173911,8.22319507,195.64,195.63,0.03]
[1755237175390,8.94319507,195.64,195.63,0.03]
[1755237175814,8.22319507,195.64,195.63,0.03]
[1755237176715,49.23441002,195.65,195.63,0.03]
[1755237178320,13.33441002,195.65,195.63,0.03]
[1755237178508,48.27129886,195.64,195.63,0.03]
[1755237178702,210.17129886,195.64,195.63,0.03]
[1755237179322,215.28272801,195.64,195.63,0.03]
[1755237179700,217.33112201,195.64,195.63,0.03]
[1755237180910,55.43026265,195.64,195.63,0.03]
[1755237182013,85.43026265,195.64,195.63,0.03]
[1755237182526,49.59026265,195.64,195.63,0.03]
[1755237182698,85.49026265,195.64,195.63,0.03]
[1755237183711,55.49026265,195.64,195.63,0.03]
[1755237183913,85.49026265,195.64,195.63,0.03]
[1755237185931,49.59026265,195.64,195.63,0.03]
[1755237186113,85.49026265,195.64,195.63,0.03]
[1755237187428,93.58074838,195.64,195.63,0.03]
[1755237188312,89.29669284,195.64,195.63,0.03]
[1755237189133,85.49026265,195.64,195.63,0.03]
[1755237192910,85.49026265,195.64,195.63,1e-08]
[1755237193127,93.57836752,195.64,195.63,1e-08]
[1755237196628,93.57549384,195.64,195.61,0.03]
[1755237196810,38.22319507,195.62,195.61,0.03]
[1755237197137,77.5504395,195.62,195.61,0.03]
[1755237197317,80.3194615,195.62,195.61,0.03]
[1755237198244,85.43141324,195.62,195.61,0.03]
[1755237198926,52.87360031,195.62,195.61,0.03]
[1755237199126,88.77360031,195.62,195.61,0.03]